fUSD/lending_fUSD_20250625
["ID","MTS","AMOUNT","RATE_DAILY","PERIOD"]
[367479402,1750813832527,-500.0,0.00024243,2]
[367479404,1750813832538,-500.0,0.0002427,2]
[367479406,1750813832548,-500.0,0.00024298,2]
[367479408,1750813832557,-500.0,0.00024325,2]
[367479410,1750813832567,-534.0,0.00024353,2]
[367479412,1750813832576,-348.12,0.00024377,2]
[367479415,1750813832586,-1142.0221239,0.000245,2]
[367479417,1750813832598,-594.4151086,0.000245,2]
[367479419,1750813832615,-2024.14165359,0.000245,2]
[367479421,1750813832626,-3240.4000002,0.000245,2]
[367479424,1750813832641,-2240.46369792,0.000245,2]
[367479426,1750813832656,-255.75670292,0.000245,2]
[367479428,1750813832665,-2849.87040622,0.000245,3]
[367479430,1750813832675,-778.60731827,0.00024509,2]
[367479432,1750813832686,-295.84,0.00024533,2]
[367479434,1750813832695,-169.94,0.00024537,2]
[367479436,1750813832704,-5800.0,0.00024564,2]
[367479438,1750813832714,-5800.0,0.00024572,2]
[367479440,1750813832723,-5800.0,0.00024581,2]
[367479442,1750813832732,-5800.0,0.00024589,2]
[367479444,1750813832742,-5800.0,0.00024598,2]
[367479446,1750813832752,-5800.0,0.00024606,2]
[367479448,1750813832761,-5800.0,0.00024614,2]
[367479450,1750813832770,-172.64803,0.0002462,2]
[367479453,1750813832781,-5800.0,0.00024623,2]
[367479455,1750813832790,-5800.0,0.00024632,2]
[367479457,1750813832800,-5800.0,0.0002464,2]
[367479459,1750813832809,-5800.0,0.00024649,2]
[367479461,1750813832818,-5800.0,0.00024657,2]
[367479463,1750813832828,-1000.0,0.00024658,2]
[367479465,1750813832837,-200.0,0.00024674,2]
[367479467,1750813832847,-215.0738,0.00024729,2]
[367479469,1750813832857,-155.8,0.00024751,2]
[367479471,1750813832867,-165.73,0.00024828,2]
[367479473,1750813832877,-195.61731846,0.00024873,2]
[367479475,1750813832886,-156.587,0.0002536,2]
[367479477,1750813832896,-420.0,0.00025363,2]
[367479479,1750813832906,-172.64803,0.0002562,2]
[367479481,1750813832915,-1139.35,0.00025786,2]
[367479483,1750813832925,-782.39,0.00025786,5]
[367479485,1750813832934,-2872.0,0.00025786,2]
[367479487,1750813832943,-9999.99,0.00025786,2]
[367479489,1750813832953,-1088.83,0.00025786,2]
[367479491,1750813832963,-1551.58,0.00025786,2]
[367479493,1750813832971,-499.99,0.00025786,2]
[367479495,1750813832981,-3689.04,0.00025786,2]
[367479496,1750813832990,-999.99,0.00025786,2]
[367479498,1750813832999,-150.99,0.00025786,2]
[367479501,1750813833010,-4976.05,0.00025786,2]
[367479503,1750813833020,-1683.97,0.00025786,2]
[367479505,1750813833029,-3566.59,0.00025786,2]
[367479507,1750813833039,-1716.85619244,0.00025923,2]
[367479509,1750813833049,-155.8,0.00025929,2]
[367479511,1750813833059,-204.0,0.00026088,12]
[367479513,1750813833068,-223.0315306,0.00026098,2]
[367479515,1750813833077,-1706.122,0.00026228,2]
[367479517,1750813833087,-1000.0,0.00026492,2]
[367479519,1750813833097,-152.08,0.00026592,2]
[367479521,1750813833106,-1500.0,0.000266,2]
[367479522,1750813833115,-172.64804,0.0002662,2]
[367479525,1750813833125,-162.380719,0.00026729,2]
[367479527,1750813833135,-767.707471,0.00026879,8]
[367479529,1750813833144,-151.0,0.00027,7]
[367479530,1750813833154,-1000.0,0.00027074,2]
[367479532,1750813833163,-155.8,0.00027108,2]
[367479534,1750813833172,-695.0,0.0002712,2]
[367479536,1750813833182,-1716.85619238,0.00027175,2]
[367479539,1750813833193,-313.57112107,0.00027396,2]
[367479541,1750813833203,-3002.26299536,0.00027397,30]
[367479543,1750813833214,-150.0,0.00027397,2]
[367479545,1750813833224,-700.0,0.00027397,2]
[367479547,1750813833233,-194.54,0.00027397,80]
[367479549,1750813833243,-300.0,0.00027397,2]
[367479551,1750813833253,-725.0,0.000274,2]
[367479553,1750813833264,-261.0,0.000274,2]
[367479555,1750813833274,-231.28369723,0.00027467,2]
[367479557,1750813833292,-587.0,0.00027523,2]
[367479559,1750813833302,-172.64803,0.0002762,2]
[367479561,1750813833312,-151.0,0.00027671,14]
[367479563,1750813833321,-490.0,0.00027685,2]
[367479565,1750813833331,-348.1323168,0.00027685,2]
[367479567,1750813833340,-242.9,0.00027685,2]
[367479569,1750813833350,-215.94,0.00027685,2]
[367479571,1750813833359,-775.89,0.00027686,2]
[367479572,1750813833368,-503.19150427,0.00027686,2]
[367479574,1750813833377,-490.0,0.00027686,2]
[367479575,1750813833387,-569.52,0.00027686,2]
[367479577,1750813833397,-490.0,0.00027686,2]
[367479579,1750813833407,-490.0,0.00027686,2]
[367479581,1750813833417,-490.0,0.00027686,2]
[367479583,1750813833426,-490.0,0.00027686,2]
[367479585,1750813833435,-490.0,0.00027686,2]
[367479587,1750813833446,-490.0,0.00027686,2]
[367479589,1750813833458,-490.0,0.00027686,2]
[367479591,1750813833470,-490.0,0.00027686,2]
[367479593,1750813833480,-490.0,0.00027686,2]
[367479595,1750813833490,-490.0,0.00027686,2]
[367479597,1750813833500,-238.01,0.00027686,2]
[367479599,1750813833510,-198.39,0.00027686,2]
[367479601,1750813833519,-262.78,0.00027686,2]
[367479603,1750813833529,-490.0,0.00027686,2]
[367479605,1750813833540,-490.0,0.00027686,2]
[367479607,1750813833550,-316.46,0.00027686,2]
[367479609,1750813833559,-490.0,0.00027686,2]
[367479611,1750813833568,-490.0,0.00027686,2]
[367479613,1750813833577,-545.77,0.00027686,2]
[367479615,1750813833586,-490.0,0.00027686,2]
[367479617,1750813833596,-490.0,0.00027686,2]
[367479619,1750813833605,-490.0,0.00027686,2]
[367479621,1750813833615,-490.0,0.00027686,2]
[367479623,1750813833624,-490.0,0.00027686,2]
[367479625,1750813833634,-291.89,0.00027686,2]
[367479626,1750813833643,-490.0,0.00027686,2]
[367479628,1750813833653,-490.0,0.00027686,2]
[367479630,1750813833663,-337.53,0.00027686,2]
[367479632,1750813833672,-490.0,0.00027686,2]
[367479634,1750813833682,-490.0,0.00027686,2]
[367479636,1750813833691,-490.0,0.00027686,2]
[367479638,1750813833701,-490.0,0.00027686,2]
[367479640,1750813833710,-691.8,0.00027686,2]
[367479642,1750813833720,-490.0,0.00027686,2]
[367479644,1750813833729,-456.87,0.00027686,2]
[367479646,1750813833739,-529.54,0.00027686,2]
[367479648,1750813833749,-627.92,0.00027686,2]
[367479651,1750813833760,-490.0,0.00027959,2]
[367479653,1750813833770,-775.89,0.0002796,2]
[367479654,1750813833780,-550.72,0.0002796,2]
[367479656,1750813833789,-490.0,0.0002796,2]
[367479658,1750813833799,-589.62,0.0002796,2]
[367479660,1750813833809,-490.0,0.0002796,2]
[367479662,1750813833818,-490.0,0.0002796,2]
[367479664,1750813833828,-320.95,0.0002796,2]
[367479666,1750813833838,-490.0,0.0002796,2]
[367479668,1750813833847,-358.77,0.0002796,2]
[367479670,1750813833856,-490.0,0.0002796,2]
[367479672,1750813833867,-490.0,0.0002796,2]
[367479674,1750813833877,-490.0,0.0002796,2]
[367479676,1750813833887,-422.41,0.0002796,2]
[367479678,1750813833897,-490.0,0.0002796,2]
[367479680,1750813833907,-381.96,0.0002796,2]
[367479683,1750813833918,-490.0,0.0002796,2]
[367479684,1750813833927,-490.0,0.0002796,2]
[367479686,1750813833937,-691.8,0.0002796,2]
[367479689,1750813833947,-168.3888056,0.00028098,2]
[367479706,1750813834116,-150.0,0.00028118,2]
[367479708,1750813834126,-490.0,0.00028233,2]
[367479710,1750813834136,-775.89,0.00028234,2]
[367479712,1750813834146,-490.0,0.00028234,2]
[367479714,1750813834155,-490.0,0.00028234,2]
[367479716,1750813834166,-490.0,0.00028234,2]
[367479718,1750813834175,-490.0,0.00028234,2]
[367479720,1750813834185,-578.37,0.00028234,2]
[367479722,1750813834195,-490.0,0.00028234,2]
[367479724,1750813834204,-490.0,0.00028234,2]
[367479726,1750813834214,-490.0,0.00028234,2]
[367479728,1750813834223,-490.0,0.00028234,2]
[367479730,1750813834233,-490.0,0.00028234,2]
[367479732,1750813834243,-691.8,0.00028234,2]
[367479734,1750813834252,-1716.85619238,0.00028427,2]
[367479736,1750813834262,-490.0,0.00028507,2]
[367479738,1750813834271,-775.89,0.00028508,2]
[367479740,1750813834280,-490.0,0.00028508,2]
[367479742,1750813834290,-490.0,0.00028508,2]
[367479744,1750813834299,-490.0,0.00028508,2]
[367479746,1750813834309,-490.0,0.00028508,2]
[367479748,1750813834318,-490.0,0.00028508,2]
[367479750,1750813834328,-490.0,0.00028508,2]
[367479752,1750813834338,-490.0,0.00028508,2]
[367479754,1750813834347,-490.0,0.00028508,2]
[367479756,1750813834356,-490.0,0.00028508,2]
[367479758,1750813834366,-691.8,0.00028508,2]
[367479760,1750813834375,-172.64804,0.0002862,2]
[367479762,1750813834385,-953.0,0.00028687,5]
[367479764,1750813834395,-180.07667258,0.00028736,2]
[367479766,1750813834404,-151.0,0.00028767,14]
[367479768,1750813834413,-490.0,0.00028781,2]
[367479770,1750813834423,-775.89,0.00028782,2]
[367479772,1750813834434,-490.0,0.00028782,2]
[367479774,1750813834444,-490.0,0.00028782,2]
[367479776,1750813834453,-490.0,0.00028782,2]
[367479778,1750813834467,-490.0,0.00028782,2]
[367479780,1750813834476,-490.0,0.00028782,2]
[367479782,1750813834486,-490.0,0.00028782,2]
[367479784,1750813834495,-617.23,0.00028782,2]
[367479786,1750813834504,-490.0,0.00028782,2]
[367479788,1750813834513,-490.0,0.00028782,2]
[367479790,1750813834522,-691.8,0.00028782,2]
[367479792,1750813834531,-239.84119403,0.00028836,2]
[367479793,1750813834540,-150.0,0.00028839,2]
[367479796,1750813834551,-490.0,0.00029008,2]
[367479798,1750813834560,-490.0,0.00029008,2]
[367479800,1750813834569,-490.0,0.00029008,2]
[367479802,1750813834578,-535.59447801,0.00029008,2]
[367479804,1750813834587,-490.0,0.00029008,2]
[367479806,1750813834597,-490.0,0.00029008,2]
[367479807,1750813834606,-490.0,0.00029008,2]
[367479810,1750813834616,-490.0,0.00029008,2]
[367479811,1750813834624,-984.94,0.00029009,2]
[367479813,1750813834634,-490.0,0.00029055,2]
[367479815,1750813834643,-775.89,0.00029056,2]
[367479817,1750813834653,-490.0,0.00029056,2]
[367479819,1750813834662,-490.0,0.00029056,2]
[367479821,1750813834671,-490.0,0.00029056,2]
[367479823,1750813834680,-490.0,0.00029056,2]
[367479825,1750813834689,-422.7639094,0.00029056,2]
[367479827,1750813834698,-490.0,0.00029056,2]
[367479829,1750813834708,-490.0,0.00029056,2]
[367479831,1750813834718,-490.0,0.00029056,2]
[367479833,1750813834727,-691.8,0.00029056,2]
[367479835,1750813834736,-490.0,0.00029282,2]
[367479837,1750813834746,-490.0,0.00029282,2]
[367479839,1750813834755,-490.0,0.00029282,2]
[367479841,1750813834764,-490.0,0.00029282,2]
[367479843,1750813834773,-490.0,0.00029282,2]
[367479845,1750813834783,-490.0,0.00029282,2]
[367479847,1750813834792,-490.0,0.00029329,2]
[367479849,1750813834802,-775.89,0.0002933,2]
[367479851,1750813834811,-490.0,0.0002933,2]
[367479853,1750813834820,-490.0,0.0002933,2]
[367479855,1750813834830,-333.9724701,0.0002933,2]
[367479857,1750813834839,-490.0,0.0002933,2]
[367479859,1750813834848,-490.0,0.0002933,2]
[367479860,1750813834858,-490.0,0.0002933,2]
[367479861,1750813834867,-345.58,0.0002933,2]
[367479862,1750813834876,-691.8,0.0002933,2]
[367479863,1750813834886,-174.61919141,0.00029467,2]
[367479864,1750813834895,-490.0,0.00029556,2]
[367479865,1750813834904,-490.0,0.00029556,2]
[367479866,1750813834913,-490.0,0.00029556,2]
[367479867,1750813834922,-328.06,0.00029556,2]
[367479868,1750813834932,-490.0,0.00029556,2]
[367479869,1750813834941,-490.0,0.00029556,2]
[367479870,1750813834951,-150.0,0.0002956,2]
[367479871,1750813834960,-490.0,0.00029603,2]
[367479872,1750813834969,-775.89,0.00029604,2]
[367479873,1750813834982,-490.0,0.00029604,2]
[367479874,1750813834992,-490.0,0.00029604,2]
[367479875,1750813835001,-490.0,0.00029604,2]
[367479876,1750813835010,-607.35,0.00029604,2]
[367479878,1750813835019,-490.0,0.00029604,2]
[367479879,1750813835029,-691.8,0.00029604,2]
[367479881,1750813835038,-172.64803,0.0002962,2]
[367479883,1750813835047,-1716.85619238,0.00029679,2]
[367479886,1750813835057,-229.86665389,0.0002983,2]
[367479888,1750813835067,-490.0,0.0002983,2]
[367479890,1750813835075,-490.0,0.0002983,2]
[367479892,1750813835085,-490.0,0.0002983,2]
[367479894,1750813835094,-490.0,0.0002983,2]
[367479896,1750813835103,-204.0,0.00029856,17]
[367479898,1750813835112,-823.0,0.00029866,2]
[367479900,1750813835122,-490.0,0.00029877,2]
[367479902,1750813835132,-775.89,0.00029878,2]
[367479904,1750813835141,-490.0,0.00029878,2]
[367479906,1750813835151,-490.0,0.00029878,2]
[367479908,1750813835160,-490.0,0.00029878,2]
[367479910,1750813835169,-490.0,0.00029878,2]
[367479912,1750813835179,-691.8,0.00029878,2]
[367479914,1750813835188,-368.65,0.000299,2]
[367479916,1750813835197,-5108.7166026,0.0003,14]
[367479918,1750813835208,-215.0,0.0003,2]
[367479920,1750813835217,-28082.79932503,0.00030072,3]
[367479931,1750813835321,-456.7858882,0.00030072,3]
[367479933,1750813835332,-613.40453012,0.00030072,3]
[367479935,1750813835343,-350.0,0.00030072,3]
[367479938,1750813835355,-893.01429191,0.00030072,3]
[367479940,1750813835366,-3466.42215114,0.00030072,3]
[367479942,1750813835375,-981.27048561,0.00030082,2]
[367480153,1750813837635,-295.94959093,0.00023228,2]
[367480155,1750813837648,-589.05040907,0.00023228,2]
[367480157,1750813837658,-885.0,0.00026228,2]
[367480159,1750813837668,-217.62,0.00029008,2]
[367480161,1750813837677,-865.0,0.0002962,5]
[367480163,1750813837687,-149.29959091,0.00030004,2]
[367480165,1750813837700,-830.20988978,0.00030004,2]
[367480167,1750813837710,-18.72951439,0.00030082,2]
[367480169,1750813837719,-490.0,0.00030104,2]
[367480171,1750813837729,-490.0,0.00030104,2]
[367480173,1750813837738,-490.0,0.00030104,2]
[367480175,1750813837749,-490.0,0.00030104,2]
[367480176,1750813837759,-385.76059583,0.00030151,2]
[367480178,1750813837770,-104.23940417,0.00030151,2]
[367480180,1750813837780,-775.89,0.00030152,2]
[367480182,1750813837789,-490.0,0.00030152,2]
[367480184,1750813837799,-287.67999999,0.00030152,2]
[367480186,1750813837809,-490.0,0.00030152,2]
[367480188,1750813837818,-490.0,0.00030152,2]
[367480190,1750813837827,-662.19059584,0.00030152,2]
[367480371,1750813839729,-1901.08665773,0.000245,2]
[367480373,1750813839740,-7596.1126294,0.000245,2]
[367480375,1750813839750,-9497.19928713,0.000245,2]
[367480377,1750813839760,-885.0,0.00029228,2]
[367480379,1750813839769,-29.60940416,0.00030152,2]
[367480381,1750813839778,-248.71531821,0.00030205,2]
[367480383,1750813839787,-156.0,0.00030205,14]
[367480385,1750813839797,-150.0,0.00030281,2]
[367480387,1750813839807,-490.0,0.00030378,2]
[367480389,1750813839817,-490.0,0.00030378,2]
[367480391,1750813839826,-490.0,0.00030378,2]
[367480393,1750813839836,-490.0,0.00030378,2]
[367480395,1750813839845,-150.0,0.00030403,7]
[367480397,1750813839854,-150.0,0.00030403,7]
[367480399,1750813839863,-490.0,0.00030425,2]
[367480401,1750813839873,-775.89,0.00030426,2]
[367480403,1750813839882,-490.0,0.00030426,2]
[367480405,1750813839892,-490.0,0.00030426,2]
[367480407,1750813839901,-490.0,0.00030426,2]
[367480409,1750813839910,-691.8,0.00030426,2]
[367480411,1750813839919,-490.0,0.00030652,2]
[367480413,1750813839929,-490.0,0.00030652,2]
[367480415,1750813839939,-487.02,0.00030652,2]
[367480417,1750813839948,-490.0,0.00030652,2]
[367480419,1750813839958,-490.0,0.00030699,2]
[367480421,1750813839967,-775.89,0.000307,2]
[367480423,1750813839976,-490.0,0.000307,2]
[367480425,1750813839985,-490.0,0.000307,2]
[367480427,1750813839994,-490.0,0.000307,2]
[367480429,1750813840003,-691.8,0.000307,2]
[367480431,1750813840013,-979.50948063,0.00030803,2]
[367480433,1750813840022,-181.08010149,0.00030836,2]
[367480435,1750813840031,-490.0,0.00030926,2]
[367480437,1750813840040,-490.0,0.00030926,2]
[367480439,1750813840050,-490.0,0.00030926,2]
[367480441,1750813840060,-1716.85619238,0.00030931,2]
[367480443,1750813840069,-490.0,0.00030973,2]
[367480445,1750813840078,-775.89,0.00030974,2]
[367480447,1750813840087,-490.0,0.00030974,2]
[367480449,1750813840096,-474.93,0.00030974,2]
[367480451,1750813840105,-490.0,0.00030974,2]
[367480453,1750813840114,-691.8,0.00030974,2]
[367480455,1750813840124,-177.187309,0.0003098,7]
[367480457,1750813840133,-177.187309,0.0003098,7]
[367480459,1750813840142,-150.0,0.00031002,2]
[367480461,1750813840151,-490.0,0.000312,2]
[367480463,1750813840161,-490.0,0.000312,2]
[367480465,1750813840170,-490.0,0.000312,2]
[367480467,1750813840179,-490.0,0.00031247,2]
[367480469,1750813840188,-775.89,0.00031248,2]
[367480471,1750813840198,-150.0,0.00031248,2]
[367480473,1750813840208,-490.0,0.00031248,2]
[367480475,1750813840217,-691.8,0.00031248,2]
[367480478,1750813840227,-157.54,0.00031311,2]
[367480480,1750813840237,-462.23,0.00031471,2]
[367480481,1750813840246,-462.23,0.00031471,2]
[367480484,1750813840256,-1238.08,0.00031471,2]
[367480485,1750813840266,-462.23,0.00031471,2]
[367480487,1750813840276,-798.57,0.00031471,2]
[367480489,1750813840285,-798.57,0.00031471,2]
[367480492,1750813840295,-798.57,0.00031471,2]
[367480494,1750813840304,-924.28,0.00031471,2]
[367480496,1750813840314,-462.23,0.00031471,2]
[367480498,1750813840323,-462.23,0.00031471,2]
[367480500,1750813840332,-798.57,0.00031471,2]
[367480502,1750813840341,-490.0,0.00031474,2]
[367480504,1750813840351,-490.0,0.00031474,2]
[367480505,1750813840360,-490.0,0.00031474,2]
[367480507,1750813840370,-490.0,0.00031521,2]
[367480510,1750813840379,-775.89,0.00031522,2]
[367480512,1750813840389,-490.0,0.00031522,2]
[367480514,1750813840401,-691.8,0.00031522,2]
[367480516,1750813840410,-257.91778498,0.00031574,2]
[367480518,1750813840419,-150.0,0.00031723,2]
[367480520,1750813840428,-9.76171347,0.00031748,2]
[367480522,1750813840440,-480.23828653,0.00031748,2]
[367480524,1750813840450,-490.0,0.00031748,2]
[367480526,1750813840462,-490.0,0.00031748,2]
[367480528,1750813840471,-253.8536799,0.00031795,2]
[367480530,1750813840480,-775.89,0.00031796,2]
[367480532,1750813840489,-490.0,0.00031796,2]
[367480534,1750813840498,-691.8,0.00031796,2]
[367480536,1750813840508,-490.0,0.00032022,2]
[367480538,1750813840517,-490.0,0.00032022,2]
[367480540,1750813840526,-490.0,0.00032022,2]
[367480542,1750813840537,-775.89,0.0003207,2]
[367480544,1750813840547,-490.0,0.0003207,2]
[367480546,1750813840556,-691.8,0.0003207,2]
[367480548,1750813840565,-1716.85619238,0.00032184,2]
[367480550,1750813840575,-187.78006525,0.00032205,2]
[367480552,1750813840584,-151.0,0.00032219,14]
[367480554,1750813840593,-885.0,0.00032228,2]
[367480556,1750813840602,-490.0,0.00032296,2]
[367480558,1750813840611,-490.0,0.00032296,2]
[367480559,1750813840620,-490.0,0.00032296,2]
[367480562,1750813840630,-775.89,0.00032344,2]
[367480564,1750813840640,-490.0,0.00032344,2]
[367480566,1750813840650,-691.8,0.00032344,2]
[367480568,1750813840659,-1152.0,0.00032409,2]
[367480570,1750813840669,-462.14,0.00032418,2]
[367480572,1750813840678,-798.57,0.00032418,2]
[367480574,1750813840687,-798.57,0.0003243,2]
[367480576,1750813840697,-459.55,0.0003243,2]
[367480578,1750813840706,-798.57,0.0003243,2]
[367480580,1750813840715,-277.66,0.0003243,2]
[367480582,1750813840725,-150.0,0.00032444,2]
[367480584,1750813840734,-1455.11,0.000325,7]
[367480585,1750813840743,-263.92676505,0.0003257,2]
[367480588,1750813840753,-490.0,0.0003257,2]
[367480589,1750813840763,-490.0,0.0003257,2]
[367480591,1750813840773,-33862.4261864,0.00032608,3]
[367480593,1750813840782,-301.06,0.00032616,2]
[367480595,1750813840791,-775.89,0.00032618,2]
[367480597,1750813840801,-481.24,0.00032618,2]
[367480599,1750813840810,-691.8,0.00032618,2]
[367480601,1750813840819,-168.0,0.00032658,2]
[367480603,1750813840829,-396.37265301,0.00032844,2]
[367480606,1750813840839,-490.0,0.00032844,2]
[367480608,1750813840848,-518.17,0.00032876,120]
[367480610,1750813840857,-775.89,0.00032892,2]
[367480612,1750813840867,-691.8,0.00032892,2]
[367480613,1750813840876,-260.37611669,0.000329,2]
[367480616,1750813840886,-725.70917336,0.000329,2]
[367480618,1750813840895,-341.86531831,0.00032904,30]
[367480620,1750813840907,-1009.39468169,0.00032904,30]
[367480622,1750813840917,-267.46074303,0.00032943,2]
[367480624,1750813840926,-177.187309,0.00032985,7]
[367480626,1750813840935,-177.187309,0.00032985,7]
[367480628,1750813840946,-1165.59,0.00033,120]
[367480630,1750813840955,-597.98,0.00033,120]
[367480632,1750813840964,-597.98,0.00033,120]
[367480634,1750813840973,-597.98,0.00033,120]
[367480636,1750813840983,-150.0,0.00033,14]
[367480638,1750813840992,-168.0,0.00033072,2]
[367480640,1750813841001,-500.0,0.00033078,5]
[367480642,1750813841010,-1000.0,0.0003309,2]
[367480643,1750813841019,-490.0,0.00033118,2]
[367480645,1750813841028,-150.0,0.00033165,2]
[367480647,1750813841037,-775.89,0.00033166,2]
[367480649,1750813841046,-691.8,0.00033166,2]
[367480651,1750813841056,-168.0,0.00033209,2]
[367480653,1750813841065,-327.3,0.00033377,2]
[367480655,1750813841074,-924.37,0.0003338,2]
[367480657,1750813841083,-798.57,0.0003338,2]
[367480659,1750813841092,-462.23,0.0003338,2]
[367480661,1750813841101,-798.57,0.0003338,2]
[367480663,1750813841110,-462.23,0.0003338,2]
[367480665,1750813841119,-798.57,0.0003338,2]
[367480667,1750813841129,-614.51,0.0003338,2]
[367480669,1750813841138,-798.57,0.0003338,2]
[367480671,1750813841147,-798.57,0.0003338,2]
[367480673,1750813841156,-798.57,0.0003338,2]
[367480675,1750813841165,-798.57,0.0003338,2]
[367480677,1750813841174,-798.57,0.0003338,2]
[367480679,1750813841183,-1057.72,0.0003338,2]
[367480681,1750813841192,-798.57,0.0003338,2]
[367480683,1750813841202,-1154.11,0.0003338,2]
[367480685,1750813841211,-150.0,0.00033389,2]
[367480687,1750813841219,-455.79,0.00033389,2]
[367480689,1750813841229,-355.23,0.00033389,2]
[367480691,1750813841238,-341.77,0.00033389,2]
[367480693,1750813841247,-150.0,0.00033389,2]
[367480695,1750813841256,-163.67,0.00033389,2]
[367480697,1750813841265,-490.0,0.00033392,2]
[367480699,1750813841274,-168.0,0.00033396,2]
[367480701,1750813841284,-1716.85619238,0.00033436,2]
[367480703,1750813841293,-775.89,0.0003344,2]
[367480705,1750813841303,-691.8,0.0003344,2]
[367480706,1750813841312,-194.72792766,0.00033574,2]
[367480709,1750813841322,-204.0,0.00033624,23]
[367480711,1750813841331,-500.0,0.00033626,5]
[367480712,1750813841340,-490.0,0.00033666,2]
[367480714,1750813841349,-172.89603072,0.0003368,2]
[367480716,1750813841358,-775.89,0.00033714,2]
[367480718,1750813841368,-691.8,0.00033714,2]
[367480720,1750813841377,-6943.53168524,0.0003376,3]
[367480779,1750813842121,202.0,0.00018552,2]
[367481160,1750813845810,-4919.2,0.00023228,2]
[367481167,1750813845868,-2219.8,0.00023228,2]
[367481169,1750813845877,-7139.0,0.00026228,2]
[367481170,1750813845887,-3103.85615965,0.00029228,2]
[367481173,1750813845898,-4035.14384035,0.00029228,2]
[367481175,1750813845908,-979.50948063,0.00031601,2]
[367481177,1750813845917,-7139.0,0.00032228,2]
[367481179,1750813845926,-26918.89450116,0.0003376,3]
[367481180,1750813845936,-216.0,0.00033769,2]
[367481182,1750813845947,-12683.54722285,0.00033769,3]
[367481185,1750813845958,-1762.02344664,0.00033769,3]
[367482366,1750813871946,203.0,0.00018552,2]
[367482374,1750814874246,157.54,0.00013699,2]
[367482375,1750814875297,72152.37770604,0.00014,2]
[367482390,1750815032010,-500.0,0.000195,2]
[367482391,1750815032023,-339.17912446,0.000195,2]
[367482392,1750815032038,-375.97934132,0.000195,2]
[367482393,1750815032047,-291.02,0.000199,2]
[367482394,1750815032056,-526.65,0.000199,2]
[367482395,1750815032067,-293.405753,0.0002215,2]
[367482396,1750815032076,-502.051,0.00022362,2]
[367482397,1750815032086,-99.21930893,0.00024704,2]
[367482398,1750815032116,-1100.78069107,0.00024704,2]
[367482399,1750815032126,-300.0,0.00024704,2]
[367482400,1750815032135,-7140.0,0.00024705,2]
[367482401,1750815032144,-152.23,0.00024705,2]
[367482402,1750815032154,-157.54,0.00024907,2]
[367482403,1750815032163,-250.0,0.00025154,2]
[367482404,1750815032172,-705.4038,0.00025686,2]
[367482405,1750815032182,-386.3068,0.00025686,2]
[367482406,1750815032190,-250.0,0.000266,2]
[367482407,1750815032199,-420.0,0.00026771,2]
[367482408,1750815032208,-379.14655732,0.0002691,2]
[367482410,1750815032219,-277.06344268,0.0002691,2]
[367482412,1750815032228,-250.0,0.00027084,2]
[367482413,1750815032237,-150.99,0.00027223,2]